[Event "Titled Tuesday Blitz November 07 Early 2023"]
[White "crazy_m_attack"]
[Black "Silvestre, Christian"]
[BlackFideId "30956269"]
[WhiteElo "2439"]
[BlackElo "2203"]
[Result "1-0"]
[Round "10"]
[TimeControl "180+1"]
[Date "2023.11.07"]
[WhiteClock "0:01:10"]
[BlackClock "0:01:00"]
[Board "112"]

1. e4 {[%clk 0:03:00]}  c5 {[%clk 0:03:00]} 2. Nf3 {[%clk 0:03:01]}  d6 {[%clk 0:02:59]} 3. d4 {[%clk 0:03:01]}  cxd4 {[%clk 0:03:00]} 4. Nxd4 {[%clk 0:03:02]}  Nf6 {[%clk 0:03:00]} 5. Nc3 {[%clk 0:03:01]}  a6 {[%clk 0:03:01]} 6. Be2 {[%clk 0:03:01]}  e5 {[%clk 0:02:58]} 7. Nf3 {[%clk 0:03:01]}  Be6 {[%clk 0:02:58]} 8. Bg5 {[%clk 0:03:01]}  h6 {[%clk 0:02:57]} 9. Bxf6 {[%clk 0:03:01]}  Qxf6 {[%clk 0:02:57]} 10. Nd5 {[%clk 0:03:01]}  Qd8 {[%clk 0:02:57]} 11. O-O {[%clk 0:02:59]}  Nd7 {[%clk 0:02:58]} 12. Nd2 {[%clk 0:02:42]}  Nf6 {[%clk 0:02:57]} 13. Nxf6+ {[%clk 0:02:39]}  Qxf6 {[%clk 0:02:55]} 14. Nc4 {[%clk 0:02:38]}  O-O-O {[%clk 0:02:49]} 15. Nb6+ {[%clk 0:02:37]}  Kb8 {[%clk 0:02:42]} 16. Nd5 {[%clk 0:02:30]}  Bxd5 {[%clk 0:02:38]} 17. Qxd5 {[%clk 0:02:29]}  Qe6 {[%clk 0:02:37]} 18. Bc4 {[%clk 0:02:27]}  Qxd5 {[%clk 0:02:37]} 19. Bxd5 {[%clk 0:02:27]}  Rd7 {[%clk 0:02:33]} 20. Rad1 {[%clk 0:02:26]}  g6 {[%clk 0:02:31]} 21. Rfe1 {[%clk 0:02:21]}  Bg7 {[%clk 0:02:27]} 22. Rd3 {[%clk 0:02:19]}  Rc8 {[%clk 0:02:25]} 23. c3 {[%clk 0:02:16]}  Rc5 {[%clk 0:02:19]} 24. Red1 {[%clk 0:02:13]}  Bf8 {[%clk 0:02:15]} 25. Rf3 {[%clk 0:02:12]}  Rcc7 {[%clk 0:02:11]} 26. Bb3 {[%clk 0:02:10]}  b5 {[%clk 0:02:08]} 27. Rf6 {[%clk 0:02:04]}  Kb7 {[%clk 0:02:00]} 28. h3 {[%clk 0:02:02]}  Kc6 {[%clk 0:01:58]} 29. Rf3 {[%clk 0:01:41]}  a5 {[%clk 0:01:56]} 30. a4 {[%clk 0:01:38]}  b4 {[%clk 0:01:54]} 31. cxb4 {[%clk 0:01:27]}  axb4 {[%clk 0:01:55]} 32. a5 {[%clk 0:01:24]}  Kb5 {[%clk 0:01:54]} 33. Ra1 {[%clk 0:01:23]}  Re7 {[%clk 0:01:48]} 34. Bd5 {[%clk 0:01:20]}  Ra7 {[%clk 0:01:46]} 35. a6 {[%clk 0:01:18]}  Kb6 {[%clk 0:01:26]} 36. Bc4 {[%clk 0:01:17]}  Rec7 {[%clk 0:01:25]} 37. b3 {[%clk 0:01:17]}  d5 {[%clk 0:01:15]} 38. Bxd5 {[%clk 0:01:12]}  Rxa6 {[%clk 0:01:00]} 39. Rf6+ {[%clk 0:01:10]} 1-0


[Site "https://www.chess.com"]

[Event "Titled Tuesday Blitz November 07 Early 2023"]
[White "Belanoff, Ted"]
[Black "Souleidis, Georgios"]
[WhiteFideId "2070588"]
[BlackFideId "4206827"]
[WhiteElo "2305"]
[BlackElo "2584"]
[Result "0-1"]
[Round "10"]
[TimeControl "180+1"]
[Date "2023.11.07"]
[WhiteClock "0:00:17"]
[BlackClock "0:00:45"]
[Board "113"]

1. b4 {[%clk 0:03:00]}  e5 {[%clk 0:02:58]} 2. a3 {[%clk 0:03:00]}  d5 {[%clk 0:02:58]} 3. Bb2 {[%clk 0:03:00]}  Bd6 {[%clk 0:02:58]} 4. g3 {[%clk 0:03:00]}  Nf6 {[%clk 0:02:57]} 5. Bg2 {[%clk 0:03:00]}  O-O {[%clk 0:02:57]} 6. e3 {[%clk 0:03:00]}  Re8 {[%clk 0:02:57]} 7. Ne2 {[%clk 0:03:01]}  a5 {[%clk 0:02:57]} 8. b5 {[%clk 0:03:00]}  a4 {[%clk 0:02:50]} 9. O-O {[%clk 0:02:49]}  Be6 {[%clk 0:02:50]} 10. d4 {[%clk 0:02:45]}  e4 {[%clk 0:02:45]} 11. Nd2 {[%clk 0:02:43]}  Qd7 {[%clk 0:02:14]} 12. c4 {[%clk 0:02:41]}  dxc4 {[%clk 0:02:14]} 13. Nc3 {[%clk 0:02:41]}  Bh3 {[%clk 0:01:55]} 14. Nxc4 {[%clk 0:02:36]}  Bxg2 {[%clk 0:01:54]} 15. Kxg2 {[%clk 0:02:36]}  h5 {[%clk 0:01:41]} 16. Rb1 {[%clk 0:02:22]}  h4 {[%clk 0:01:32]} 17. Ba1 {[%clk 0:02:15]}  Qf5 {[%clk 0:01:16]} 18. Nxd6 {[%clk 0:02:06]}  cxd6 {[%clk 0:01:15]} 19. h3 {[%clk 0:01:53]}  hxg3 {[%clk 0:01:09]} 20. fxg3 {[%clk 0:01:52]}  Qg5 {[%clk 0:01:09]} 21. Qe1 {[%clk 0:01:48]}  Nbd7 {[%clk 0:01:08]} 22. Rb4 {[%clk 0:01:31]}  Nb6 {[%clk 0:01:08]} 23. Bb2 {[%clk 0:01:26]}  Nfd5 {[%clk 0:01:06]} 24. Nxd5 {[%clk 0:01:25]}  Nxd5 {[%clk 0:01:07]} 25. Rf4 {[%clk 0:01:25]}  Nxb4 {[%clk 0:01:06]} 26. Qxb4 {[%clk 0:01:24]}  d5 {[%clk 0:01:04]} 27. g4 {[%clk 0:01:12]}  Rec8 {[%clk 0:01:03]} 28. Bc3 {[%clk 0:01:07]}  Rc4 {[%clk 0:01:02]} 29. Qb2 {[%clk 0:01:06]}  Rac8 {[%clk 0:01:01]} 30. Bd2 {[%clk 0:01:00]}  Rc2 {[%clk 0:01:01]} 31. Qb4 {[%clk 0:00:59]}  Ra2 {[%clk 0:01:02]} 32. Rf2 {[%clk 0:00:59]}  Rcc2 {[%clk 0:01:00]} 33. Qa5 {[%clk 0:00:58]}  Kh7 {[%clk 0:00:57]} 34. Kg3 {[%clk 0:00:47]}  b6 {[%clk 0:00:48]} 35. Qb4 {[%clk 0:00:17]}  Rxd2 {[%clk 0:00:45]} 0-1


[Site "https://www.chess.com"]

[Event "Titled Tuesday Blitz November 07 Early 2023"]
[White "Estrada Nieto, Julian"]
[Black "De Souza, Cristiano Gomes"]
[WhiteFideId "5101018"]
[BlackFideId "2151758"]
[WhiteElo "2458"]
[BlackElo "2285"]
[Result "0-1"]
[Round "10"]
[TimeControl "180+1"]
[Date "2023.11.07"]
[WhiteClock "0:00:19"]
[BlackClock "0:00:18"]
[Board "123"]

1. e4 {[%clk 0:03:00]}  c5 {[%clk 0:02:59]} 2. Nf3 {[%clk 0:03:00]}  d6 {[%clk 0:02:59]} 3. d4 {[%clk 0:03:01]}  cxd4 {[%clk 0:03:00]} 4. Qxd4 {[%clk 0:03:01]}  Nf6 {[%clk 0:03:00]} 5. Nc3 {[%clk 0:03:01]}  Nc6 {[%clk 0:03:01]} 6. Bb5 {[%clk 0:03:01]}  Bd7 {[%clk 0:03:01]} 7. Bxc6 {[%clk 0:03:01]}  Bxc6 {[%clk 0:03:01]} 8. Bg5 {[%clk 0:03:02]}  e6 {[%clk 0:03:01]} 9. O-O-O {[%clk 0:03:01]}  Be7 {[%clk 0:03:01]} 10. Rhe1 {[%clk 0:03:02]}  Qa5 {[%clk 0:02:58]} 11. Kb1 {[%clk 0:03:00]}  h6 {[%clk 0:02:54]} 12. Bh4 {[%clk 0:02:59]}  O-O {[%clk 0:02:48]} 13. Qd2 {[%clk 0:02:59]}  Rfd8 {[%clk 0:02:42]} 14. Nd5 {[%clk 0:02:58]}  Qxd2 {[%clk 0:02:35]} 15. Nxe7+ {[%clk 0:02:57]}  Kf8 {[%clk 0:02:35]} 16. Nxd2 {[%clk 0:02:57]}  Kxe7 {[%clk 0:02:32]} 17. f3 {[%clk 0:02:56]}  g5 {[%clk 0:02:28]} 18. Bf2 {[%clk 0:02:52]}  b6 {[%clk 0:02:27]} 19. Nb3 {[%clk 0:02:47]}  d5 {[%clk 0:02:26]} 20. e5 {[%clk 0:02:43]}  Nd7 {[%clk 0:02:22]} 21. Bd4 {[%clk 0:02:36]}  a5 {[%clk 0:02:20]} 22. Nc1 {[%clk 0:02:30]}  Nc5 {[%clk 0:02:17]} 23. Nd3 {[%clk 0:02:25]}  Nxd3 {[%clk 0:02:15]} 24. Rxd3 {[%clk 0:02:25]}  b5 {[%clk 0:02:14]} 25. Bc5+ {[%clk 0:02:24]}  Kd7 {[%clk 0:02:14]} 26. Rd4 {[%clk 0:02:19]}  Rg8 {[%clk 0:02:12]} 27. Bd6 {[%clk 0:02:15]}  Rg6 {[%clk 0:02:09]} 28. g4 {[%clk 0:02:02]}  Rh8 {[%clk 0:02:03]} 29. h4 {[%clk 0:01:49]}  h5 {[%clk 0:02:01]} 30. gxh5 {[%clk 0:01:48]}  Rxh5 {[%clk 0:02:00]} 31. hxg5 {[%clk 0:01:41]}  Rhxg5 {[%clk 0:02:00]} 32. a3 {[%clk 0:01:33]}  Rg1 {[%clk 0:01:55]} 33. Rdd1 {[%clk 0:01:32]}  Rxe1 {[%clk 0:01:46]} 34. Rxe1 {[%clk 0:01:31]}  f6 {[%clk 0:01:45]} 35. f4 {[%clk 0:01:28]}  fxe5 {[%clk 0:01:43]} 36. fxe5 {[%clk 0:01:23]}  Rg7 {[%clk 0:01:38]} 37. Rf1 {[%clk 0:01:21]}  Rh7 {[%clk 0:01:29]} 38. Rf2 {[%clk 0:01:17]}  Rg7 {[%clk 0:01:28]} 39. b3 {[%clk 0:01:16]}  Rh7 {[%clk 0:01:27]} 40. Kb2 {[%clk 0:01:17]}  a4 {[%clk 0:01:18]} 41. bxa4 {[%clk 0:01:11]}  bxa4 {[%clk 0:01:18]} 42. Kc3 {[%clk 0:01:11]}  Rh3+ {[%clk 0:01:14]} 43. Kb4 {[%clk 0:01:10]}  Rh4+ {[%clk 0:01:14]} 44. Kc5 {[%clk 0:01:07]}  Rc4+ {[%clk 0:01:14]} 45. Kb6 {[%clk 0:01:08]}  d4 {[%clk 0:01:09]} 46. Rf7+ {[%clk 0:01:07]}  Ke8 {[%clk 0:01:09]} 47. Re7+ {[%clk 0:01:07]}  Kd8 {[%clk 0:01:09]} 48. Rxe6 {[%clk 0:00:59]}  Rxc2 {[%clk 0:01:01]} 49. Bb4 {[%clk 0:00:58]}  Bd7 {[%clk 0:00:47]} 50. Rd6 {[%clk 0:00:58]}  Kc8 {[%clk 0:00:40]} 51. e6 {[%clk 0:00:44]}  Be8 {[%clk 0:00:37]} 52. e7 {[%clk 0:00:43]}  Bd7 {[%clk 0:00:35]} 53. Rxd4 {[%clk 0:00:43]}  Rc7 {[%clk 0:00:30]} 54. Rf4 {[%clk 0:00:33]}  Rc6+ {[%clk 0:00:27]} 55. Ka5 {[%clk 0:00:29]}  Be8 {[%clk 0:00:26]} 56. Rd4 {[%clk 0:00:21]}  Kb7 {[%clk 0:00:18]} 57. Rd8 {[%clk 0:00:19]}  Ra6# {[%clk 0:00:18]} 0-1


[Site "https://www.chess.com"]

[Event "Titled Tuesday Blitz November 07 Early 2023"]
[White "Zampronha, Wladimir Camilo"]
[Black "knightinshiningarmour16"]
[WhiteFideId "2103087"]
[WhiteElo "2305"]
[BlackElo "2179"]
[Result "1-0"]
[Round "10"]
[TimeControl "180+1"]
[Date "2023.11.07"]
[WhiteClock "0:01:58"]
[BlackClock "0:02:20"]
[Board "131"]

1. e4 {[%clk 0:02:45]}  c6 {[%clk 0:02:59]} 2. d4 {[%clk 0:02:45]}  d5 {[%clk 0:03:00]} 3. e5 {[%clk 0:02:43]}  Bf5 {[%clk 0:03:00]} 4. Nf3 {[%clk 0:02:43]}  e6 {[%clk 0:03:00]} 5. Be2 {[%clk 0:02:43]}  c5 {[%clk 0:03:00]} 6. O-O {[%clk 0:02:43]}  cxd4 {[%clk 0:03:00]} 7. Nxd4 {[%clk 0:02:43]}  Bg6 {[%clk 0:02:59]} 8. c4 {[%clk 0:02:43]}  Ne7 {[%clk 0:02:56]} 9. cxd5 {[%clk 0:02:40]}  Nxd5 {[%clk 0:02:54]} 10. Bb5+ {[%clk 0:02:39]}  Nd7 {[%clk 0:02:54]} 11. Nc3 {[%clk 0:02:39]}  Nxc3 {[%clk 0:02:54]} 12. bxc3 {[%clk 0:02:38]}  a6 {[%clk 0:02:54]} 13. Ba4 {[%clk 0:02:34]}  b5 {[%clk 0:02:54]} 14. Bb3 {[%clk 0:02:34]}  Nxe5 {[%clk 0:02:53]} 15. Bf4 {[%clk 0:02:32]}  Nd7 {[%clk 0:02:49]} 16. Re1 {[%clk 0:02:28]}  Be7 {[%clk 0:02:45]} 17. Bxe6 {[%clk 0:02:24]}  O-O {[%clk 0:02:45]} 18. Nc6 {[%clk 0:02:17]}  fxe6 {[%clk 0:02:31]} 19. Nxd8 {[%clk 0:02:14]}  Rfxd8 {[%clk 0:02:31]} 20. Bc7 {[%clk 0:02:10]}  Rdc8 {[%clk 0:02:22]} 21. Qxd7 {[%clk 0:02:09]}  Bf6 {[%clk 0:02:22]} 22. Be5 {[%clk 0:01:58]}  Rd8 {[%clk 0:02:20]} 1-0


[Site "https://www.chess.com"]

[Event "Titled Tuesday Blitz November 07 Early 2023"]
[White "Begunov, Konstantin"]
[Black "parintele_chess"]
[WhiteFideId "4118510"]
[WhiteElo "2376"]
[BlackElo "2223"]
[Result "1-0"]
[Round "10"]
[TimeControl "180+1"]
[Date "2023.11.07"]
[WhiteClock "0:00:12"]
[BlackClock "0:00:00"]
[Board "135"]

1. d4 {[%clk 0:03:00]}  d5 {[%clk 0:02:59]} 2. c4 {[%clk 0:03:01]}  e6 {[%clk 0:03:00]} 3. Nc3 {[%clk 0:03:01]}  c5 {[%clk 0:03:00]} 4. cxd5 {[%clk 0:03:01]}  exd5 {[%clk 0:03:00]} 5. Nf3 {[%clk 0:03:01]}  Nc6 {[%clk 0:03:00]} 6. g3 {[%clk 0:03:02]}  Nf6 {[%clk 0:03:00]} 7. Bg2 {[%clk 0:03:02]}  cxd4 {[%clk 0:03:00]} 8. Nxd4 {[%clk 0:03:02]}  Bc5 {[%clk 0:03:01]} 9. Nxc6 {[%clk 0:02:58]}  bxc6 {[%clk 0:03:02]} 10. O-O {[%clk 0:02:58]}  O-O {[%clk 0:03:00]} 11. Na4 {[%clk 0:02:47]}  Bb6 {[%clk 0:02:59]} 12. Bf4 {[%clk 0:02:36]}  Re8 {[%clk 0:02:49]} 13. Rc1 {[%clk 0:02:31]}  Ba6 {[%clk 0:02:46]} 14. Re1 {[%clk 0:02:25]}  Rc8 {[%clk 0:02:45]} 15. Nc5 {[%clk 0:02:15]}  Bxc5 {[%clk 0:02:38]} 16. Rxc5 {[%clk 0:02:15]}  Qb6 {[%clk 0:02:38]} 17. Rc2 {[%clk 0:01:38]}  h6 {[%clk 0:02:18]} 18. Qd2 {[%clk 0:01:21]}  Ng4 {[%clk 0:01:48]} 19. e4 {[%clk 0:01:12]}  d4 {[%clk 0:01:37]} 20. e5 {[%clk 0:00:58]}  d3 {[%clk 0:01:26]} 21. Rc3 {[%clk 0:00:53]}  g5 {[%clk 0:01:09]} 22. Bh3 {[%clk 0:00:43]}  gxf4 {[%clk 0:00:35]} 23. Bxg4 {[%clk 0:00:42]}  fxg3 {[%clk 0:00:30]} 24. Bxc8 {[%clk 0:00:38]}  gxf2+ {[%clk 0:00:16]} 25. Qxf2 {[%clk 0:00:39]}  Qxf2+ {[%clk 0:00:16]} 26. Kxf2 {[%clk 0:00:39]}  Rxc8 {[%clk 0:00:15]} 27. Ke3 {[%clk 0:00:37]}  c5 {[%clk 0:00:09]} 28. Kd2 {[%clk 0:00:37]}  Rb8 {[%clk 0:00:06]} 29. b3 {[%clk 0:00:36]}  Rb4 {[%clk 0:00:04]} 30. Rxc5 {[%clk 0:00:36]}  Rh4 {[%clk 0:00:04]} 31. Rg1+ {[%clk 0:00:30]}  Kh7 {[%clk 0:00:04]} 32. Rg2 {[%clk 0:00:29]}  Bb7 {[%clk 0:00:03]} 33. Rf2 {[%clk 0:00:29]}  Be4 {[%clk 0:00:03]} 34. Rc7 {[%clk 0:00:26]}  Kg6 {[%clk 0:00:02]} 35. Rxa7 {[%clk 0:00:25]}  Bd5 {[%clk 0:00:01]} 36. Kxd3 {[%clk 0:00:22]}  Rh3+ {[%clk 0:00:02]} 37. Kd4 {[%clk 0:00:22]}  Be6 {[%clk 0:00:02]} 38. b4 {[%clk 0:00:20]}  Rh4+ {[%clk 0:00:02]} 39. Kc3 {[%clk 0:00:18]}  Rc4+ {[%clk 0:00:02]} 40. Kd3 {[%clk 0:00:18]}  Rxb4 {[%clk 0:00:02]} 41. Ra3 {[%clk 0:00:17]}  Bc4+ {[%clk 0:00:01]} 42. Kd2 {[%clk 0:00:15]}  Be6 {[%clk 0:00:02]} 43. Rg3+ {[%clk 0:00:15]}  Kh5 {[%clk 0:00:02]} 44. Kc3 {[%clk 0:00:14]}  Rc4+ {[%clk 0:00:02]} 45. Kd3 {[%clk 0:00:14]}  Rc5 {[%clk 0:00:03]} 46. Rf4 {[%clk 0:00:14]}  Rxe5 {[%clk 0:00:03]} 47. a3 {[%clk 0:00:11]}  Rd5+ {[%clk 0:00:02]} 48. Rd4 {[%clk 0:00:12]}  Bf5+ {[%clk 0:00:02]} 49. Kc3 {[%clk 0:00:12]}  Rc5+ {[%clk 0:00:02]} 50. Kb4 {[%clk 0:00:12]}  Rc2 {[%clk 0:00:02]} 51. Rd5 {[%clk 0:00:12]}  Rf2 {[%clk 0:00:00]} 52. a4 {[%clk 0:00:12]} 1-0


[Site "https://www.chess.com"]

[Event "Titled Tuesday Blitz November 07 Early 2023"]
[White "Marcziter, Dmitrii"]
[Black "Sarkar, Justin"]
[WhiteFideId "13900765"]
[BlackFideId "2010011"]
[WhiteElo "2371"]
[BlackElo "2219"]
[Result "0-1"]
[Round "10"]
[TimeControl "180+1"]
[Date "2023.11.07"]
[WhiteClock "0:01:33"]
[BlackClock "0:01:08"]
[Board "136"]

1. e4 {[%clk 0:03:00]}  c5 {[%clk 0:02:48]} 2. Nc3 {[%clk 0:02:59]}  Nc6 {[%clk 0:02:46]} 3. f4 {[%clk 0:02:59]}  a6 {[%clk 0:02:30]} 4. a4 {[%clk 0:02:58]}  e6 {[%clk 0:02:25]} 5. Nf3 {[%clk 0:02:55]}  d5 {[%clk 0:02:20]} 6. exd5 {[%clk 0:02:52]}  exd5 {[%clk 0:02:20]} 7. d4 {[%clk 0:02:53]}  Nf6 {[%clk 0:02:03]} 8. Be2 {[%clk 0:02:45]}  cxd4 {[%clk 0:01:49]} 9. Nxd4 {[%clk 0:02:43]}  Bc5 {[%clk 0:01:49]} 10. Nb3 {[%clk 0:02:07]}  Ba7 {[%clk 0:01:46]} 11. Bf3 {[%clk 0:02:02]}  O-O {[%clk 0:01:43]} 12. Nxd5 {[%clk 0:01:52]}  Re8+ {[%clk 0:01:32]} 13. Kf1 {[%clk 0:01:48]}  Nxd5 {[%clk 0:01:23]} 14. Qxd5 {[%clk 0:01:46]}  Qb6 {[%clk 0:01:12]} 15. Qd2 {[%clk 0:01:38]}  Be6 {[%clk 0:01:09]} 16. Be2 {[%clk 0:01:33]}  Qf2# {[%clk 0:01:08]} 0-1


[Site "https://www.chess.com"]

[Event "Titled Tuesday Blitz November 07 Early 2023"]
[White "Sviridova, Vlada"]
[Black "Barbot, Pierre"]
[WhiteFideId "24109606"]
[BlackFideId "663727"]
[WhiteElo "2217"]
[BlackElo "2277"]
[Result "0-1"]
[Round "10"]
[TimeControl "180+1"]
[Date "2023.11.07"]
[WhiteClock "0:00:10"]
[BlackClock "0:00:17"]
[Board "139"]

1. d4 {[%clk 0:03:00]}  Nf6 {[%clk 0:02:59]} 2. c4 {[%clk 0:03:01]}  g6 {[%clk 0:02:59]} 3. Nc3 {[%clk 0:03:01]}  d5 {[%clk 0:02:59]} 4. cxd5 {[%clk 0:03:01]}  Nxd5 {[%clk 0:03:00]} 5. e4 {[%clk 0:03:02]}  Nxc3 {[%clk 0:03:00]} 6. bxc3 {[%clk 0:03:03]}  Bg7 {[%clk 0:03:00]} 7. Bc4 {[%clk 0:03:04]}  c5 {[%clk 0:03:00]} 8. Ne2 {[%clk 0:03:04]}  Nc6 {[%clk 0:02:57]} 9. Be3 {[%clk 0:03:04]}  O-O {[%clk 0:02:58]} 10. O-O {[%clk 0:03:03]}  b6 {[%clk 0:02:56]} 11. Rc1 {[%clk 0:03:02]}  Bb7 {[%clk 0:02:46]} 12. Qd2 {[%clk 0:03:02]}  e5 {[%clk 0:02:43]} 13. d5 {[%clk 0:02:56]}  Na5 {[%clk 0:02:43]} 14. Bd3 {[%clk 0:02:55]}  c4 {[%clk 0:02:39]} 15. Bc2 {[%clk 0:02:55]}  Qd6 {[%clk 0:02:35]} 16. Bh6 {[%clk 0:02:44]}  Ba6 {[%clk 0:02:16]} 17. g3 {[%clk 0:01:51]}  Nb7 {[%clk 0:02:09]} 18. Bxg7 {[%clk 0:01:36]}  Kxg7 {[%clk 0:02:09]} 19. f4 {[%clk 0:01:36]}  Nc5 {[%clk 0:02:05]} 20. f5 {[%clk 0:01:32]}  f6 {[%clk 0:02:04]} 21. h4 {[%clk 0:01:31]}  Nd3 {[%clk 0:01:48]} 22. Rb1 {[%clk 0:01:17]}  Rac8 {[%clk 0:01:29]} 23. Kg2 {[%clk 0:01:10]}  Rg8 {[%clk 0:01:00]} 24. Ng1 {[%clk 0:00:20]}  Qc5 {[%clk 0:00:52]} 25. Nh3 {[%clk 0:00:18]}  b5 {[%clk 0:00:26]} 26. h5 {[%clk 0:00:18]}  gxh5 {[%clk 0:00:25]} 27. Qe2 {[%clk 0:00:16]}  Kh8 {[%clk 0:00:18]} 28. Qxh5 {[%clk 0:00:15]}  Qe3 {[%clk 0:00:18]} 29. Rbd1 {[%clk 0:00:11]}  Qxg3+ {[%clk 0:00:17]} 30. Kh1 {[%clk 0:00:10]}  Qg2# {[%clk 0:00:17]} 0-1


[Site "https://www.chess.com"]

[Event "Titled Tuesday Blitz November 07 Early 2023"]
[White "DonCiao"]
[Black "Osmonbekov, Talaibek"]
[BlackFideId "2017253"]
[WhiteElo "2135"]
[BlackElo "2288"]
[Result "0-1"]
[Round "10"]
[TimeControl "180+1"]
[Date "2023.11.07"]
[WhiteClock "0:01:24"]
[BlackClock "0:02:10"]
[Board "142"]

1. c4 {[%clk 0:03:00]}  f5 {[%clk 0:02:58]} 2. g3 {[%clk 0:03:00]}  Nf6 {[%clk 0:02:59]} 3. Bg2 {[%clk 0:03:00]}  d6 {[%clk 0:02:59]} 4. Nc3 {[%clk 0:02:57]}  e5 {[%clk 0:02:59]} 5. d3 {[%clk 0:02:57]}  Be7 {[%clk 0:02:59]} 6. e4 {[%clk 0:02:56]}  O-O {[%clk 0:02:59]} 7. exf5 {[%clk 0:02:46]}  Bxf5 {[%clk 0:02:58]} 8. Bxb7 {[%clk 0:02:45]}  Nbd7 {[%clk 0:02:58]} 9. Bxa8 {[%clk 0:02:34]}  Qxa8 {[%clk 0:02:59]} 10. f3 {[%clk 0:02:18]}  Nc5 {[%clk 0:02:56]} 11. Ne4 {[%clk 0:02:14]}  d5 {[%clk 0:02:37]} 12. Nxc5 {[%clk 0:01:59]}  Bxc5 {[%clk 0:02:34]} 13. Ne2 {[%clk 0:01:56]}  dxc4 {[%clk 0:02:29]} 14. d4 {[%clk 0:01:40]}  exd4 {[%clk 0:02:27]} 15. Nxd4 {[%clk 0:01:39]}  Bxd4 {[%clk 0:02:20]} 16. Qxd4 {[%clk 0:01:38]}  Qxf3 {[%clk 0:02:19]} 17. Rg1 {[%clk 0:01:29]}  Re8+ {[%clk 0:02:15]} 18. Kd2 {[%clk 0:01:24]}  Re2+ {[%clk 0:02:10]} 0-1


[Site "https://www.chess.com"]

[Event "Titled Tuesday Blitz November 07 Early 2023"]
[White "Todev, Simeon"]
[Black "Mohammadian,Mohammad"]
[WhiteFideId "2925133"]
[BlackFideId "12566055"]
[WhiteElo "2340"]
[BlackElo "1902"]
[Result "1-0"]
[Round "10"]
[TimeControl "180+1"]
[Date "2023.11.07"]
[WhiteClock "0:02:29"]
[BlackClock "0:01:25"]
[Board "145"]

1. e4 {[%clk 0:02:54]}  e5 {[%clk 0:02:58]} 2. Nf3 {[%clk 0:02:55]}  Nc6 {[%clk 0:02:57]} 3. d4 {[%clk 0:02:54]}  exd4 {[%clk 0:02:56]} 4. Bc4 {[%clk 0:02:55]}  Bb4+ {[%clk 0:02:54]} 5. c3 {[%clk 0:02:55]}  dxc3 {[%clk 0:02:54]} 6. O-O {[%clk 0:02:56]}  d6 {[%clk 0:02:49]} 7. Qb3 {[%clk 0:02:46]}  Qd7 {[%clk 0:02:36]} 8. bxc3 {[%clk 0:02:42]}  Bc5 {[%clk 0:02:31]} 9. e5 {[%clk 0:02:42]}  Nxe5 {[%clk 0:02:27]} 10. Nxe5 {[%clk 0:02:35]}  dxe5 {[%clk 0:02:27]} 11. Rd1 {[%clk 0:02:36]}  Qf5 {[%clk 0:02:22]} 12. Qb5+ {[%clk 0:02:32]}  c6 {[%clk 0:02:05]} 13. Qxc5 {[%clk 0:02:33]}  Nf6 {[%clk 0:01:58]} 14. Ba3 {[%clk 0:02:30]}  Ng8 {[%clk 0:01:25]} 15. Qf8# {[%clk 0:02:29]} 1-0


[Site "https://www.chess.com"]

[Event "Titled Tuesday Blitz November 07 Early 2023"]
[White "Fajdetic, Hrvoje"]
[Black "Ghosh, Chanchal Kumer"]
[WhiteFideId "14501945"]
[BlackFideId "10201858"]
[WhiteElo "2300"]
[BlackElo "1970"]
[Result "0-1"]
[Round "10"]
[TimeControl "180+1"]
[Date "2023.11.07"]
[WhiteClock "0:00:16"]
[BlackClock "0:00:18"]
[Board "147"]

1. d4 {[%clk 0:02:56]}  d5 {[%clk 0:03:00]} 2. Bf4 {[%clk 0:02:56]}  e6 {[%clk 0:03:00]} 3. e3 {[%clk 0:02:56]}  Nf6 {[%clk 0:03:00]} 4. Nf3 {[%clk 0:02:56]}  Bd6 {[%clk 0:03:01]} 5. Bg3 {[%clk 0:02:56]}  c5 {[%clk 0:03:01]} 6. c3 {[%clk 0:02:56]}  Nc6 {[%clk 0:03:00]} 7. Nbd2 {[%clk 0:02:55]}  Qc7 {[%clk 0:02:58]} 8. Bb5 {[%clk 0:02:51]}  O-O {[%clk 0:02:53]} 9. Bxc6 {[%clk 0:02:50]}  bxc6 {[%clk 0:02:53]} 10. dxc5 {[%clk 0:02:44]}  Bxg3 {[%clk 0:02:51]} 11. hxg3 {[%clk 0:02:45]}  a5 {[%clk 0:02:50]} 12. Qc2 {[%clk 0:02:25]}  e5 {[%clk 0:02:47]} 13. b4 {[%clk 0:02:04]}  axb4 {[%clk 0:02:44]} 14. cxb4 {[%clk 0:02:05]}  Re8 {[%clk 0:02:39]} 15. O-O {[%clk 0:02:02]}  Qe7 {[%clk 0:02:20]} 16. a4 {[%clk 0:01:57]}  Bd7 {[%clk 0:02:16]} 17. Rab1 {[%clk 0:01:53]}  Ng4 {[%clk 0:02:15]} 18. b5 {[%clk 0:01:37]}  Qf6 {[%clk 0:02:12]} 19. Rfd1 {[%clk 0:01:28]}  e4 {[%clk 0:02:05]} 20. Nxe4 {[%clk 0:01:27]}  dxe4 {[%clk 0:02:05]} 21. Rxd7 {[%clk 0:01:23]}  exf3 {[%clk 0:02:04]} 22. gxf3 {[%clk 0:01:23]}  Qxf3 {[%clk 0:01:52]} 23. b6 {[%clk 0:01:12]}  Nxe3 {[%clk 0:01:25]} 24. fxe3 {[%clk 0:01:05]}  Qxg3+ {[%clk 0:01:24]} 25. Qg2 {[%clk 0:00:56]}  Qxe3+ {[%clk 0:01:24]} 26. Qf2 {[%clk 0:00:53]}  Qg5+ {[%clk 0:01:19]} 27. Kf1 {[%clk 0:00:52]}  Qg6 {[%clk 0:01:02]} 28. Rbd1 {[%clk 0:00:45]}  h5 {[%clk 0:00:30]} 29. b7 {[%clk 0:00:44]}  Rxa4 {[%clk 0:00:26]} 30. Rd8 {[%clk 0:00:37]}  Rxd8 {[%clk 0:00:20]} 31. Rxd8+ {[%clk 0:00:35]}  Kh7 {[%clk 0:00:20]} 32. Rh8+ {[%clk 0:00:18]}  Kxh8 {[%clk 0:00:19]} 33. b8=Q+ {[%clk 0:00:19]}  Kh7 {[%clk 0:00:20]} 34. Qb1 {[%clk 0:00:20]}  Qxb1+ {[%clk 0:00:18]} 35. Kg2 {[%clk 0:00:16]}  Ra2 {[%clk 0:00:18]} 0-1


[Site "https://www.chess.com"]